{"text_format":"1","workbook":"xlsx","n_sheets":10,"sheets":["PORTADA","DATOS","MENU","RUTA","LISTADO","CFDIR","METADATAR","BASE","DISCREPANCIA","CFORMAP"],"not_rendered":{"charts":0,"images":16,"macros":1,"external_links":0,"defined_names":32,"comments":2,"pivot_tables":0},"unopened":[],"bounds":{"document_bytes":16777216,"sheet_cells":100000,"rows_first":2000,"rows_last":500,"rows_between":2000,"halvings":0,"cell_chars":16384,"cell_head_chars":4096},"cells_cut":0,"cells_raw":0,"read":"whole","date_system":"1900"}

{"sheet":"PORTADA","index":0,"n_rows":0,"n_cols":0,"rows_kept":0,"cut":false,"hidden":false,"merged":[[1,1,10,7]]}

{"sheet":"DATOS","index":1,"n_rows":50,"n_cols":10,"rows_kept":50,"cut":false,"hidden":true,"merged":[]}
[]
[]
[]
[]
[null,"ENE",1]
[null,"FEB",2]
[null,"MAR",3]
[null,"ABR",4]
[null,"MAY",5]
[null,"JUN",6]
[null,"JUL",7]
[null,"AGO",8]
[null,"SEP",9]
[null,"OCT",10]
[null,"NOV",11]
[null,"DIC",12]
[null,null,{"$f":"IFERROR(VLOOKUP(B17,$I$10:$J$51,2,FALSE),\"\")","v":""}]
[]
[]
[]
[]
[]
[]
[]
[]
[]
[]
[]
[]
[]
[]
[]
[]
[]
[]
[null,null,null,null,null,null,null,null,"Z",8]
[null,null,null,null,null,null,null,null,"&",4]
[null,null,null,null,null,null,null,null,"0","J"]
[null,null,null,null,null,null,null,null,"1","T"]
[null,null,null,null,null,null,null,null,"2","G"]
[null,null,null,null,null,null,null,null,"3","T"]
[null,null,null,null,null,null,null,null,"4","Z"]
[null,null,null,null,null,null,null,null,"5","E"]
[null,null,null,null,null,null,null,null,"6","C"]
[null,null,null,null,null,null,null,null,"7","K"]
[null,null,null,null,null,null,null,null,"8","O"]
[null,null,null,null,null,null,null,null,"9","P"]
[null,null,null,null,null,null,null,null,".","&"]
[null,null,null,null,null,null,null,null,",","P"]
[null,null,null,null,null,null,null,null," ","R"]

{"sheet":"MENU","index":2,"n_rows":12,"n_cols":3,"rows_kept":12,"cut":false,"hidden":true,"merged":[]}
[]
[]
[]
[null,"Descripción","Hoja"]
[null,"Hora para elegir la ruta en donde se encuentran los estados de cuenta bancarios","RUTA"]
[null,"Listado de terceros","LISTADO"]
[null,"Importar archivo METADATA CFDI emitidos","METADATAE"]
[null,"Importar XML recibidos de tipo ingreso, egreso y pagos","CFDIR"]
[null,"Importar archivo METADATA CFDI recibidos","METADATAR"]
[null,"Resumen de CFDI emitidos y recibidos","BASE"]
[null,"Formato para determinar la discrepancia fiscal","DISCREPANCIA"]
[null,"Catálogo de formas de pago del CFDI","CFORMAP"]

{"sheet":"RUTA","index":3,"n_rows":5,"n_cols":3,"rows_kept":5,"cut":false,"hidden":true,"merged":[]}
[]
[]
[]
[]
[null,"Nombre del banco del estado de cuenta","Ruta"]

{"sheet":"LISTADO","index":4,"n_rows":6,"n_cols":7,"rows_kept":6,"cut":false,"hidden":true,"merged":[]}
[]
[]
[]
[null,"Relación de personas que realizaron gastos por cuenta de terceros"]
[]
[null,"RFC","Nombre","Relación","Puesto","Número de trabajador","Tipo de servicio"]

{"sheet":"CFDIR","index":5,"n_rows":7,"n_cols":31,"rows_kept":7,"cut":false,"hidden":true,"merged":[[5,12,5,13],[5,14,5,16],[5,26,5,30]]}
[]
[]
[null,"Capture el RFC del contribuyente receptor de los CFDI"]
[]
[null,"Contribuyente"]
[null,null,null,null,null,null,null,null,null,null,null,null,"Impuestos trasladados",null,"Impuestos retenidos",null,null,null,null,null,null,null,null,null,null,null,"Datos de la comprobación del gasto"]
[null,"Tipo de comprobante","Fecha","Folio fiscal","RFC proveedor","Proveedor","Uso del CFDI","Método de pago","Forma de pago","Importe","Descuento","Importe - descuento","IEPS","IVA","RISR","RIVA","RIEPS","Impuesto sobre hospedaje","Total","Tipo de relación","UUID relacionado","Fecha de cancelación","Ruta del archivo","En caso CFDI de pago No. de parcilaidad","Folio fiscal del timbrado en caso de CFDI de tipo pago","¿Forma de pago bancarizado?","Fecha del cobro del cheque o transferencia","No. de cheque, transferencia, referencia u otro","Importe pagado","RFC del tercero","Nombre del tercero"]

{"sheet":"METADATAR","index":6,"n_rows":0,"n_cols":0,"rows_kept":0,"cut":false,"hidden":true,"merged":[]}

{"sheet":"BASE","index":7,"n_rows":73,"n_cols":31,"rows_kept":73,"cut":false,"hidden":true,"merged":[[9,12,9,13],[9,14,9,16],[9,26,9,30]]}
[]
[]
[]
[null,"Fecha inicial"]
[null,"Fecha final"]
[null,"Tipo de CFDI"]
[null,"Tipo de comprobante"]
[null,"Método de pago"]
[null,"Forma de pago"]
[null,"RFC del tercero",null,null,null,null,null,null,null,null,null,null,"Impuestos trasladados",null,"Impuestos retenidos",null,null,null,null,null,null,null,null,null,null,null,"Datos de la comprobación del gasto"]
[null,"Tipo de comprobante","Fecha","Folio fiscal","RFC proveedor","Proveedor","Uso del CFDI","Método de pago","Forma de pago","Importe","Descuento","Importe - descuento","IEPS","IVA","RISR","RIVA","RIEPS","Impuesto sobre hospedaje","Total","Tipo de relación","UUID relacionado","Fecha de cancelación","Ruta del archivo","En caso CFDI de pago No. de parcilaidad","Folio fiscal del timbrado en caso de CFDI de tipo pago","¿Forma de pago bancarizado?","Fecha del cobro del cheque o transferencia","No. de cheque, transferencia, referencia u otro","Importe pagado","RFC del tercero","Nombre del tercero"]
[]
[]
[]
[]
[]
[]
[]
[]
[]
[]
[]
[]
[]
[]
[]
[]
[]
[]
[]
[]
[]
[]
[]
[]
[]
[]
[]
[]
[]
[]
[]
[]
[]
[]
[]
[]
[]
[]
[]
[]
[]
[]
[]
[]
[]
[]
[]
[]
[]
[]
[]
[]
[]
[]
[]
[]
[]
[]
[]
[]
[null,null,"Total 1/31/2025",null,null,null,null,null,null,{"$f":"SUBTOTAL(9,J71:J71)","v":0},0,0,0,0,0,0,0,0,0]
[null,null,"Total general",null,null,null,null,null,null,{"$f":"SUBTOTAL(9,J12:J71)","v":0},0,0,0,0,0,0,0,0,0]

{"sheet":"DISCREPANCIA","index":8,"n_rows":31,"n_cols":3,"rows_kept":31,"cut":false,"hidden":true,"merged":[]}
[]
[]
[]
[]
[null,"Determinación de la discrepancia fiscal del trabajador"]
[null,"Capitulo","Importe"]
[null,"Saldo inicial en bancos e inversiones"]
[null,"Sueldos y salarios"]
[null,"Indemnización"]
[null,"Asimilados a salarios"]
[null,"Intereses"]
[null,"Premios"]
[null,"Otros ingresos"]
[null,"Prestamos"]
[null,"Devolución de impuestos"]
[null,"Herencias o legados"]
[null,"(=) Total de ingresos",{"$f":"SUM(C7:C16)","v":0}]
[]
[null,"Importe depositado para gastos por cuenta de terceros"]
[null,"(-) Erogaciones con CFDI"]
[null,"(-) Erogaciones con complemento de pago"]
[null,"(-) Deducciones personales"]
[null,"(-) Gastos educativos"]
[null,"(-) Deducciones de nómina"]
[null,"(-) Pago de prestamos"]
[null,"(-) Otros pagos"]
[null,"(=) Total de eregaciones",{"$f":"SUM(C19:C26)","v":0}]
[]
[]
[null,"Ingresos declarados o amparados en CFDI"]
[null,{"$f":"IF(C17>=C27,\"NO EXISTE DISCREPANCIA FISCAL\",\"POSIBLE DISCREPANCIA FISCAL\")","v":"NO EXISTE DISCREPANCIA FISCAL"},{"$f":"IFERROR(IF(C17>=C27,C17-C27,C27-C17),0)","v":0}]

{"sheet":"CFORMAP","index":9,"n_rows":27,"n_cols":4,"rows_kept":27,"cut":false,"hidden":true,"merged":[]}
[]
[]
[]
[]
[null,"c_FormaPago","Descripción","Bancarizado"]
[null,1,"Efectivo","No"]
[null,2,"Cheque nominativo","Sí"]
[null,3,"Transferencia electrónica de fondos","Sí"]
[null,4,"Tarjeta de crédito","Sí"]
[null,5,"Monedero electrónico","Sí"]
[null,6,"Dinero electrónico","Sí"]
[null,8,"Vales de despensa","No"]
[null,12,"Dación en pago","No"]
[null,13,"Pago por subrogación","No"]
[null,14,"Pago por consignación","No"]
[null,15,"Condonación","No"]
[null,17,"Compensación","No"]
[null,23,"Novación","No"]
[null,24,"Confusión","No"]
[null,25,"Remisión de deuda","No"]
[null,26,"Prescripción o caducidad","No"]
[null,27,"A satisfacción del acreedor","No"]
[null,28,"Tarjeta de débito","Sí"]
[null,29,"Tarjeta de servicios","Sí"]
[null,30,"Aplicación de anticipos","No"]
[null,31,"Intermediario pagos","No"]
[null,99,"Por definir","Opcional"]